fUSD/lending_fUSD_20260201
["ID","MTS","AMOUNT","RATE_DAILY","PERIOD"]
[404225113,1769977840602,-630.2400127,0.00016473,2]
[404225114,1769977840611,-167.45602324,0.00016473,2]
[404225115,1769977840620,-500.0,0.00016473,2]
[404225116,1769977840629,-500.0,0.00016473,2]
[404225117,1769977840639,-500.0,0.00016473,2]
[404225118,1769977840648,-500.0,0.00016473,2]
[404225119,1769977840657,-500.0,0.00016473,2]
[404225120,1769977840667,-639.68949456,0.00016473,2]
[404225121,1769977840677,-250.0,0.00016502,2]
[404225122,1769977840686,-166.66,0.00016529,2]
[404225123,1769977840696,-150.00690623,0.00016551,2]
[404225124,1769977840706,-164.77811604,0.00016559,2]
[404225125,1769977840715,-484.529,0.00016573,2]
[404225126,1769977840725,-721.99,0.00016603,2]
[404225127,1769977840734,-1000.0,0.00016621,2]
[404225128,1769977840744,-10138.3866,0.00016621,2]
[404225129,1769977840754,-33275.4141,0.00016621,2]
[404225130,1769977840763,-2860.86363377,0.00016635,2]
[404225131,1769977840773,-7340.85845729,0.00016635,2]
[404225132,1769977840783,-159.05238023,0.00016659,2]
[404225133,1769977840793,-322.6107,0.00016734,2]
[404225134,1769977840802,-174.61919141,0.00016734,2]
[404225135,1769977840812,-500.0,0.00016734,2]
[404225136,1769977840822,-209.40437684,0.00016734,2]
[404225137,1769977840831,-151.0,0.00016734,2]
[404225138,1769977840840,-500.0,0.00016734,2]
[404225139,1769977840850,-151.0,0.00016734,2]
[404225140,1769977840859,-250.0,0.00016734,2]
[404225141,1769977840869,-500.0,0.00016734,2]
[404225142,1769977840878,-151.0,0.00016734,2]
[404225143,1769977840888,-250.0,0.00016734,2]
[404225144,1769977840898,-500.0,0.00016734,2]
[404225145,1769977840907,-151.0,0.00016734,2]
[404225146,1769977840917,-250.0,0.00016734,2]
[404225147,1769977840928,-500.0,0.00016734,2]
[404225148,1769977840938,-151.0,0.00016734,2]
[404225149,1769977840947,-250.0,0.00016734,2]
[404225150,1769977840957,-500.0,0.00016734,2]
[404225151,1769977840966,-151.0,0.00016734,2]
[404225152,1769977840975,-250.0,0.00016734,2]
[404225153,1769977840985,-500.0,0.00016734,2]
[404225154,1769977840994,-151.0,0.00016734,2]
[404225155,1769977841004,-250.0,0.00016734,2]
[404225156,1769977841014,-500.0,0.00016734,2]
[404225157,1769977841023,-151.0,0.00016734,2]
[404225158,1769977841033,-250.0,0.00016734,2]
[404225159,1769977841042,-500.0,0.00016734,2]
[404225160,1769977841052,-151.0,0.00016734,2]
[404225161,1769977841062,-250.0,0.00016734,2]
[404225162,1769977841072,-500.0,0.00016734,2]
[404225163,1769977841082,-151.0,0.00016734,2]
[404225164,1769977841091,-250.0,0.00016734,2]
[404225165,1769977841100,-500.0,0.00016734,2]
[404225166,1769977841110,-151.0,0.00016734,2]
[404225167,1769977841119,-250.0,0.00016734,2]
[404225168,1769977841130,-250.0,0.00016734,2]
[404225169,1769977841141,-209.40437684,0.00016734,2]
[404225170,1769977841150,-1428.38747117,0.00016734,2]
[404225171,1769977841161,-721.12765535,0.00016734,2]
[404225172,1769977841172,-250.0,0.00016734,2]
[404225173,1769977841181,-250.0,0.00016734,2]
[404225174,1769977841190,-500.0,0.00016734,2]
[404225175,1769977841200,-500.0,0.00016734,2]
[404225176,1769977841210,-500.0,0.00016734,2]
[404225177,1769977841220,-500.0,0.00016734,2]
[404225178,1769977841231,-500.0,0.00016734,2]
[404225179,1769977841241,-250.0,0.00016734,2]
[404225180,1769977841251,-500.0,0.00016734,2]
[404225181,1769977841260,-500.0,0.00016734,2]
[404225182,1769977841269,-500.0,0.00016734,2]
[404225183,1769977841279,-250.0,0.00016734,2]
[404225184,1769977841289,-500.0,0.00016734,2]
[404225185,1769977841298,-500.0,0.00016734,2]
[404225186,1769977841307,-250.0,0.00016734,2]
[404225187,1769977841317,-500.0,0.00016734,2]
[404225188,1769977841326,-500.0,0.00016734,2]
[404225189,1769977841336,-500.0,0.00016734,2]
[404225190,1769977841345,-250.0,0.00016734,2]
[404225191,1769977841354,-500.0,0.00016734,2]
[404225192,1769977841363,-500.0,0.00016734,2]
[404225193,1769977841372,-500.0,0.00016734,2]
[404225194,1769977841381,-500.0,0.00016734,2]
[404225195,1769977841390,-250.0,0.00016734,2]
[404225196,1769977841399,-500.0,0.00016734,2]
[404225197,1769977841409,-500.0,0.00016734,2]
[404225198,1769977841418,-500.0,0.00016734,2]
[404225199,1769977841428,-250.0,0.00016734,2]
[404225200,1769977841437,-500.0,0.00016734,2]
[404225201,1769977841447,-500.0,0.00016734,2]
[404225202,1769977841457,-500.0,0.00016734,2]
[404225203,1769977841466,-250.0,0.00016734,2]
[404225204,1769977841475,-500.0,0.00016734,2]
[404225205,1769977841484,-500.0,0.00016734,2]
[404225206,1769977841493,-500.0,0.00016734,2]
[404225207,1769977841502,-250.0,0.00016734,2]
[404225208,1769977841511,-500.0,0.00016734,2]
[404225209,1769977841520,-500.0,0.00016734,2]
[404225210,1769977841530,-500.0,0.00016734,2]
[404225211,1769977841539,-500.0,0.00016734,2]
[404225212,1769977841548,-250.0,0.00016734,2]
[404225213,1769977841558,-449.87473057,0.00016734,2]
[404225214,1769977841568,-500.0,0.00016734,2]
[404225215,1769977841577,-241.11788993,0.00016734,2]
[404225216,1769977841587,-500.0,0.00016734,2]
[404225217,1769977841597,-500.0,0.00016734,2]
[404225218,1769977841606,-500.0,0.00016734,2]
[404225219,1769977841615,-250.0,0.00016734,2]
[404225220,1769977841624,-500.0,0.00016734,2]
[404225221,1769977841633,-250.0,0.00016734,2]
[404225222,1769977841642,-250.0,0.00016734,2]
[404225223,1769977841651,-500.0,0.00016734,2]
[404225224,1769977841661,-250.0,0.00016734,2]
[404225225,1769977841670,-250.0,0.00016734,2]
[404225226,1769977841679,-500.0,0.00016734,2]
[404225227,1769977841689,-250.0,0.00016734,2]
[404225228,1769977841698,-250.0,0.00016734,2]
[404225229,1769977841707,-500.0,0.00016734,2]
[404225230,1769977841716,-250.0,0.00016734,2]
[404225231,1769977841725,-250.0,0.00016734,2]
[404225232,1769977841735,-500.0,0.00016734,2]
[404225233,1769977841744,-250.0,0.00016734,2]
[404225234,1769977841753,-250.0,0.00016734,2]
[404225235,1769977841763,-500.0,0.00016734,2]
[404225236,1769977841772,-250.0,0.00016734,2]
[404225237,1769977841781,-250.0,0.00016734,2]
[404225238,1769977841790,-250.0,0.00016734,2]
[404225239,1769977841801,-500.0,0.00016734,2]
[404225240,1769977841811,-250.0,0.00016734,2]
[404225241,1769977841820,-250.0,0.00016734,2]
[404225242,1769977841829,-500.0,0.00016734,2]
[404225243,1769977841839,-250.0,0.00016734,2]
[404225244,1769977841848,-250.0,0.00016734,2]
[404225245,1769977841857,-250.0,0.00016734,2]
[404225246,1769977841867,-250.0,0.00016734,2]
[404225247,1769977841876,-250.0,0.00016734,2]
[404225248,1769977841886,-250.0,0.00016734,2]
[404225249,1769977841895,-209.40437684,0.00016734,2]
[404225250,1769977841905,-500.0,0.00016734,2]
[404225251,1769977841915,-500.0,0.00016734,2]
[404225252,1769977841925,-500.0,0.00016734,2]
[404225253,1769977841934,-500.0,0.00016734,2]
[404225254,1769977841943,-500.0,0.00016734,2]
[404225255,1769977841952,-500.0,0.00016734,2]
[404225256,1769977841961,-500.0,0.00016734,2]
[404225257,1769977841970,-578.20924308,0.00016734,2]
[404225258,1769977841980,-500.0,0.00016734,2]
[404225259,1769977841989,-500.0,0.00016734,2]
[404225260,1769977841998,-500.0,0.00016734,2]
[404225261,1769977842008,-500.0,0.00016734,2]
[404225262,1769977842017,-257.05951855,0.00016763,2]
[404225263,1769977842027,-217.15233878,0.00016789,2]
[404225264,1769977842036,-2860.86363377,0.00016816,2]
[404225265,1769977842045,-225.18697532,0.00016844,2]
[404225266,1769977842054,-233.51889341,0.00016899,2]
[404225267,1769977842064,-174.95788466,0.00016901,2]
[404225268,1769977842073,-2086.67524391,0.00016909,2]
[404225269,1769977842082,-274.38340544,0.00016909,2]
[404225270,1769977842091,-242.15909246,0.00016954,2]
[404225271,1769977842100,-2860.86363377,0.00016997,2]
[404225272,1769977842109,-2158.9797641,0.00017,3]
[404225273,1769977842118,-92779.40337352,0.00017,2]
[404225274,1769977842128,-251.11897888,0.00017009,2]
[404225275,1769977842141,-500.0,0.00017012,2]
[404225276,1769977842150,-250.0,0.00017031,2]
[404225277,1769977842160,-1265.0,0.00017041,2]
[404225278,1769977842170,-260.4103811,0.00017064,2]
[404225279,1769977842179,-270.0455652,0.00017119,2]
[404225280,1769977842189,-1265.0,0.00017127,2]
[404225281,1769977842198,-280.03725112,0.00017174,2]
[404225282,1769977842209,-2860.86363377,0.00017177,2]
[404225283,1769977842218,-10000.0,0.00017198,2]
[404225284,1769977842227,-721.99,0.00017225,2]
[404225285,1769977842238,-290.39862941,0.00017229,2]
[404225286,1769977842248,-164.77811603,0.0001723,2]
[404225287,1769977842258,-1000.0,0.0001726,2]
[404225288,1769977842267,-181.08010149,0.00017282,2]
[404225289,1769977842276,-217.15233878,0.00017282,2]
[404225290,1769977842285,-351.96633732,0.00017282,2]
[404225291,1769977842294,-1481.23780761,0.00017282,2]
[404225292,1769977842304,-301.1433787,0.00017284,2]
[404225293,1769977842315,-1265.0,0.00017316,2]
[404225294,1769977842326,-2860.86363377,0.00017358,2]
[404225295,1769977842337,-212.12976534,0.00017368,2]
[404225296,1769977842347,-2314.0,0.000174,2]
[404225297,1769977842356,-2086.6752439,0.00017405,2]
[404225298,1769977842365,-1265.0,0.00017468,2]
[404225299,1769977842374,-1898.85844425,0.00017496,2]
[404225300,1769977842384,-2001.35415096,0.000175,3]
[404225301,1769977842393,-1045.68637885,0.000175,2]
[404225302,1769977842402,-331.9313063,0.00017507,2]
[404225303,1769977842411,-449.1135,0.00017507,2]
[404225304,1769977842420,-1000.0,0.00017534,2]
[404225305,1769977842431,-2860.86363377,0.00017539,2]
[404225306,1769977842440,-2810.0,0.00017553,2]
[404225307,1769977842450,-500.0,0.0001756,2]
[404225308,1769977842459,-1680.0,0.0001758,2]
[404225309,1769977842467,-1265.0,0.00017609,2]
[404225310,1769977842478,-212.12976534,0.00017634,2]
[404225311,1769977842487,-457.29474664,0.0001764,2]
[404225312,1769977842497,-310.78,0.00017728,2]
[404225313,1769977842506,-150.99,0.00017728,2]
[404225314,1769977842515,-9999.99,0.00017728,2]
[404225315,1769977842524,-3408.52,0.00017728,2]
[404225316,1769977842533,-6783.87,0.00017728,2]
[404225317,1769977842542,-4314.48,0.00017728,2]
[404225318,1769977842551,-566.35,0.00017728,5]
[404225319,1769977842560,-299.99,0.00017728,4]
[404225320,1769977842568,-3827.76,0.00017728,2]
[404225321,1769977842578,-6559.58,0.00017728,2]
[404225322,1769977842588,-150.99,0.00017728,2]
[404225323,1769977842597,-62537.43,0.00017728,2]
[404225324,1769977842607,-298.36,0.00017728,2]
[404225325,1769977842616,-978.38,0.00017728,2]
[404225326,1769977842661,-2810.0,0.00017767,2]
[404225327,1769977842670,-2810.0,0.00017798,2]
[404225328,1769977842680,-1000.0,0.00017808,2]
[404225329,1769977842689,-25000.0,0.00017821,3]
[404225330,1769977842698,-25000.0,0.0001783,3]
[404225331,1769977842707,-25000.0,0.0001783,3]
[404225332,1769977842716,-109605.83836455,0.0001783,2]
[404225333,1769977842726,-187.78006525,0.0001783,2]
[404225334,1769977842735,-225.18697532,0.0001783,2]
[404225335,1769977842744,-1536.04360649,0.0001783,2]
[404225336,1769977842753,-150.00690623,0.00017832,2]
[404225337,1769977842763,-25000.0,0.00017838,3]
[404225338,1769977842772,-25000.0,0.00017838,3]
[404225339,1769977842781,-186.09929734,0.00017846,2]
[404225340,1769977842790,-25000.0,0.00017847,3]
[404225341,1769977842799,-25000.0,0.00017847,3]
[404225342,1769977842809,-721.99,0.00017848,2]
[404225343,1769977842818,-200.0,0.00017855,2]
[404225344,1769977842827,-25000.0,0.00017856,3]
[404225345,1769977842836,-200.0,0.00017856,2]
[404225346,1769977842846,-200.0,0.00017856,2]
[404225347,1769977842855,-25000.0,0.00017856,3]
[404225348,1769977842864,-25000.0,0.00017865,3]
[404225349,1769977842873,-25000.0,0.00017865,3]
[404225350,1769977842882,-25000.0,0.00017874,3]
[404225351,1769977842891,-25000.0,0.00017874,3]
[404225352,1769977842900,-25000.0,0.00017882,3]
[404225353,1769977842909,-25000.0,0.00017882,3]
[404225354,1769977842918,-25000.0,0.00017891,3]
[404225355,1769977842928,-25000.0,0.00017891,3]
[404225356,1769977842937,-25000.0,0.000179,3]
[404225357,1769977842946,-212.12976534,0.000179,2]
[404225358,1769977842955,-25000.0,0.000179,3]
[404225359,1769977842964,-743.53578902,0.000179,3]
[404225360,1769977842973,-164.77811603,0.000179,2]
[404225361,1769977842982,-2086.6752439,0.000179,2]
[404225362,1769977842991,-6337.0,0.000179,2]
[404225363,1769977843000,-1273.033,0.0001791,2]
[404225364,1769977843009,-174.174,0.0001791,2]
[404225365,1769977843018,-1208.946,0.0001791,2]
[404225366,1769977843027,-927.314,0.0001791,2]
[404225367,1769977843036,-1410.0,0.0001791,2]
[404225368,1769977843045,-3496.695,0.0001791,2]
[404225369,1769977843054,-1334.0,0.0001791,2]
[404225370,1769977843063,-151.0,0.00017934,2]
[404225371,1769977843072,-151.0,0.00017934,2]
[404225372,1769977843081,-259.16483147,0.00017934,2]
[404225373,1769977843089,-53432.78051226,0.0001799,3]
[404225374,1769977843099,-186.09929734,0.0001799,2]
[404225375,1769977843108,-433373.9903052,0.00017998,2]
[404225376,1769977843117,-259.3386402,0.00017998,2]
[404225377,1769977843127,-5841.5186675,0.00017998,2]
[404225378,1769977843138,-150.0,0.00017999,2]
[404225379,1769977843147,-150.0,0.00017999,2]
[404225380,1769977843155,-150.0,0.00017999,2]
[404225381,1769977843165,-150.0,0.00017999,2]
[404225382,1769977843174,-150.0,0.00017999,2]
[404225383,1769977843183,-150.0,0.00017999,2]
[404225384,1769977843193,-240.62946663,0.00017999,2]
[404225385,1769977843203,-155.0,0.00017999,2]
[404225386,1769977843212,-178.70097198,0.00017999,2]
[404225387,1769977843221,-300.0,0.00017999,2]
[404225388,1769977843230,-300.0,0.00017999,2]
[404225390,1769977843239,-1000.68755277,0.00018,2]
[404225393,1769977843249,-651820.5944311,0.00018,2]
[404225396,1769977843273,-1801.62344132,0.00018,2]
[404225398,1769977843287,-1579.56364063,0.00018,2]
[404225400,1769977843297,-3756.514788,0.00018,2]
[404225401,1769977843308,-809.63046192,0.00018,2]
[404225405,1769977843540,-151.0,0.00016256,2]
[404225406,1769977843550,-274.38340542,0.00017405,2]
[404225407,1769977843559,-7505.53633481,0.00018,2]
[404225408,1769977843570,-2302.665,0.00018,2]
[404225449,1769977845972,-7340.85845729,0.00016816,2]
[404225450,1769977845981,-400.19889642,0.00017719,2]
[404225451,1769977846187,-2460.66473735,0.00017719,2]
[404225452,1769977846197,-274.38340542,0.000179,2]
[404225453,1769977846208,-6846.95438592,0.00018,2]
[404225494,1769978488183,-307.72,0.00027397,30]
[404225495,1769978488248,-279.12009147,0.00028,60]
[404225496,1769978488313,-176.3,0.000302,30]
[404225497,1769978488378,-203.21,0.00030411,120]
[404225498,1769978488445,-307.72,0.00032232,30]
[404225499,1769978488510,-500.0,0.00033939,60]
[404225500,1769978488573,-150.0,0.00034521,30]
[404225501,1769978488636,-171.0,0.00034521,30]
[404225502,1769978488700,-500.0,0.00034821,60]
[404225503,1769978488764,-190.441816,0.0003591,31]
[404225504,1769978488830,-190.441816,0.0003591,31]
[404225505,1769978488894,-190.441816,0.0003591,31]
[404225506,1769978488960,-190.441816,0.0003591,31]
[404225507,1769978489026,-210.0,0.0003689,30]
[404225508,1769978489090,-307.72,0.00037067,120]
[404225509,1769978489156,-176.3,0.000374,30]
[404225510,1769978489220,-217.2624496,0.00038184,120]
[404225511,1769978489283,-151.0,0.00038356,120]
[404225512,1769978489346,-257.89633,0.00038356,120]
[404225513,1769978489412,-151.0,0.00038356,120]
[404225514,1769978489477,-151.0,0.00038356,120]
[404225515,1769978489542,-152.547641,0.00038356,120]
[404225516,1769978489605,-152.547641,0.00038356,120]
[404225517,1769978489668,-152.547641,0.00038356,120]
[404225518,1769978489730,-152.547641,0.00038356,120]
[404225519,1769978489792,-152.547641,0.00038356,120]
[404225520,1769978489856,-152.547641,0.00038356,120]
[404225521,1769978490106,-152.547641,0.00038356,120]
[404225522,1769978490170,-152.547641,0.00038356,120]
[404225523,1769978490234,-151.0,0.00038356,120]
[404225524,1769978490299,-151.0,0.00038356,120]
[404225525,1769978490380,-151.0,0.00038356,120]
[404225526,1769978490450,-151.0,0.00038356,120]
[404225527,1769978490516,-177.18432,0.00038356,120]
[404225528,1769978490579,-192.685761,0.00038356,120]
[404225529,1769978490644,-151.0,0.00038356,120]
[404225530,1769978490707,-151.0,0.00038356,120]
[404225531,1769978490772,-151.0,0.00038356,120]
[404225532,1769978490837,-151.0,0.00038356,120]
[404225533,1769978490902,-151.0,0.00038356,120]
[404225534,1769978490965,-151.0,0.00038356,120]
[404225535,1769978491030,-151.0,0.00038356,120]
[404225536,1769978491093,-242.033112,0.00038356,120]
[404225537,1769978491157,-151.0,0.00038356,120]
[404225538,1769978491220,-151.0,0.00038356,120]
[404225539,1769978491282,-151.0,0.00038356,120]
[404225540,1769978491351,-151.0,0.00038356,120]
[404225541,1769978491414,-151.0,0.00038356,90]
[404225542,1769978491476,-151.0,0.00038356,90]
[404225543,1769978491539,-151.0,0.00038356,90]
[404225544,1769978491604,-151.0,0.00038356,90]
[404225545,1769978491669,-294.935686,0.00038356,90]
[404225546,1769978491736,-151.0,0.00038356,30]
[404225547,1769978491802,-158.737051,0.00038356,30]
[404225548,1769978491868,-151.0,0.00038356,120]
[404225549,1769978491936,-151.0,0.00038356,120]
[404225550,1769978492004,-151.0,0.00038356,120]
[404225551,1769978492070,-151.0,0.00038356,120]
[404225552,1769978492133,-151.0,0.00038356,120]
[404225553,1769978492199,-151.0,0.00038356,120]
[404225554,1769978492267,-151.0,0.00038356,120]
[404225555,1769978492332,-151.0,0.00038356,120]
[404225556,1769978492395,-151.0,0.00038356,120]
[404225557,1769978492459,-151.0,0.00038356,120]
[404225558,1769978492524,-151.0,0.00038356,120]
[404225559,1769978492587,-212.426078,0.00038356,120]
[404225560,1769978492651,-151.0,0.00038356,120]
[404225561,1769978492710,-151.0,0.00038356,120]
[404225562,1769978492777,-264.839712,0.00038356,120]
[404225563,1769978492841,-151.0,0.00038356,120]
[404225564,1769978492904,-298.338623,0.00038356,120]
[404225565,1769978492969,-151.0,0.00038356,120]
[404225566,1769978493034,-163.176154,0.00038356,120]
[404225567,1769978493100,-151.0,0.00038356,120]
[404225568,1769978493168,-151.0,0.00038356,120]
[404225569,1769978493233,-234.792421,0.00038356,120]
[404225570,1769978493302,-151.0,0.00038356,120]
[404225571,1769978493373,-151.0,0.00038356,120]
[404225572,1769978493441,-151.0,0.00038356,120]
[404225573,1769978493508,-151.0,0.00038356,120]
[404225574,1769978493575,-151.0,0.00038356,120]
[404225575,1769978493641,-151.0,0.00038356,120]
[404225576,1769978493705,-151.0,0.00038356,120]
[404225577,1769978493768,-151.0,0.00038356,120]
[404225578,1769978493836,-151.0,0.00038356,120]
[404225579,1769978493900,-151.0,0.00038356,120]
[404225580,1769978493964,-151.0,0.00038356,120]
[404225581,1769978494029,-151.0,0.00038356,120]
[404225582,1769978494095,-151.0,0.00038356,120]
[404225583,1769978494166,-151.0,0.00038356,120]
[404225584,1769978494230,-151.0,0.00038356,120]
[404225585,1769978494294,-151.0,0.00038356,120]
[404225586,1769978494361,-151.0,0.00038356,120]
[404225587,1769978494426,-151.0,0.00038356,120]
[404225588,1769978494489,-151.0,0.00038356,120]
[404225589,1769978494554,-279.369417,0.00038356,120]
[404225590,1769978494617,-151.0,0.00038356,120]
[404225591,1769978494683,-158.042886,0.00038356,120]
[404225592,1769978494753,-158.042886,0.00038356,120]
[404225593,1769978494817,-158.042886,0.00038356,120]
[404225594,1769978494883,-158.042886,0.00038356,120]
[404225595,1769978494960,-158.042886,0.00038356,120]
[404225596,1769978495027,-158.042886,0.00038356,120]
[404225597,1769978495092,-158.042886,0.00038356,120]
[404225598,1769978495157,-158.042886,0.00038356,120]
[404225599,1769978495223,-158.042886,0.00038356,120]
[404225600,1769978495289,-158.042886,0.00038356,120]
[404225601,1769978495356,-158.042886,0.00038356,120]
[404225602,1769978495421,-158.042886,0.00038356,120]
[404225603,1769978495486,-158.042886,0.00038356,120]
[404225604,1769978495550,-158.042886,0.00038356,120]
[404225605,1769978495617,-158.042886,0.00038356,120]
[404225606,1769978495683,-151.0,0.00038356,120]
[404225607,1769978495750,-158.042886,0.00038356,120]
[404225608,1769978495817,-151.0,0.00038356,120]
[404225610,1769978495886,-151.0,0.00038356,120]
[404225611,1769978495980,-158.042886,0.00038356,120]
[404225612,1769978496059,-151.0,0.00038356,120]
[404225613,1769978496128,-158.042886,0.00038356,120]
[404225614,1769978496202,-151.0,0.00038356,120]
[404225615,1769978496272,-158.042886,0.00038356,120]
[404225616,1769978496344,-151.0,0.00038356,120]
[404225617,1769978496420,-158.042878,0.00038356,120]
[404225618,1769978496490,-151.0,0.00038356,120]
[404225619,1769978496557,-250.473484,0.00038356,120]
[404225620,1769978496628,-151.0,0.00038356,120]
[404225621,1769978496707,-151.0,0.00038356,120]
[404225622,1769978496780,-151.0,0.00038356,120]
[404225623,1769978496853,-151.0,0.00038356,120]
[404225624,1769978496923,-151.0,0.00038356,120]
[404225625,1769978496993,-260.802761,0.00038356,120]
[404225626,1769978497062,-151.0,0.00038356,120]
[404225627,1769978497137,-246.06103181,0.00038356,120]
[404225628,1769978497210,-151.0,0.00038356,120]
[404225629,1769978497280,-151.0,0.00038356,120]
[404225630,1769978497363,-151.0,0.00038356,120]
[404225631,1769978497436,-151.0,0.00038356,120]
[404225632,1769978497515,-151.0,0.00038356,120]
[404225633,1769978497594,-151.0,0.00038356,120]
[404225634,1769978497665,-151.0,0.00038356,120]
[404225635,1769978497732,-151.0,0.00038356,120]
[404225636,1769978497799,-151.0,0.00038356,120]
[404225637,1769978497869,-151.0,0.00038356,120]
[404225638,1769978497938,-151.0,0.00038356,120]
[404225639,1769978498003,-151.0,0.00038356,120]
[404225640,1769978498073,-151.0,0.00038356,120]
[404225641,1769978498148,-151.0,0.00038356,120]
[404225642,1769978498219,-151.0,0.00038356,120]
[404225643,1769978498286,-151.0,0.00038356,120]
[404225644,1769978498354,-151.0,0.00038356,120]
[404225645,1769978498423,-151.0,0.00038356,120]
[404225646,1769978498492,-151.0,0.00038356,120]
[404225647,1769978498559,-160.446364,0.00038356,120]
[404225648,1769978498636,-153.517542,0.00038356,120]
[404225649,1769978498706,-759.4,0.000388,30]
[404225650,1769978498777,-210.0,0.0003891,30]
[404225651,1769978498844,-193.65685252,0.00039,120]
[404225652,1769978498915,-151.0,0.00039041,120]
[404225653,1769978498986,-151.0,0.00039041,120]
[404225654,1769978499056,-151.0,0.00039041,120]
[404225655,1769978499124,-151.0,0.00039041,120]
[404225656,1769978499193,-151.0,0.00039041,120]
[404225657,1769978499263,-151.0,0.00039041,120]
[404225658,1769978499331,-151.0,0.00039041,120]
[404225659,1769978499399,-246.944673,0.00039041,120]
[404225660,1769978499466,-266.0,0.00039926,30]
[404225661,1769978499533,-151.0,0.0004,120]
[404225662,1769978499600,-152.0,0.0004,120]
[404225663,1769978499663,-151.0,0.0004,120]
[404225664,1769978499726,-151.0,0.0004,120]
[404225665,1769978499791,-151.0,0.0004,120]
[404225666,1769978499854,-151.0,0.0004,120]
[404225667,1769978499925,-151.0,0.0004,120]
[404225668,1769978499990,-151.0,0.0004,120]
[404225669,1769978500054,-151.0,0.0004,90]
[404225670,1769978500120,-151.0,0.0004,90]
[404225671,1769978500191,-759.4,0.000402,30]
[404225672,1769978500257,-152.0,0.000407,120]
[404225673,1769978500322,-151.0,0.000408,120]
[404225674,1769978500388,-210.0,0.0004093,30]
[404225675,1769978500454,-155.12,0.00040956,120]
[404225676,1769978500520,-155.13,0.00040958,120]
[404225677,1769978500585,-155.13,0.00041058,120]
[404225678,1769978500647,-434.4486,0.00041068,120]
[404225679,1769978500711,-155.14527255,0.00041158,120]
[404225680,1769978500777,-200.0,0.00041345,120]
[404225681,1769978500840,-152.0,0.000414,120]
[404225682,1769978500904,-151.0,0.000416,120]
[404225683,1769978500970,-151.0,0.00041753,120]
[404225684,1769978501037,-288.513709,0.00041753,120]
[404225685,1769978501104,-300.020412,0.00041753,107]
[404225686,1769978501171,-240.54906563,0.00041851,71]
[404225687,1769978501238,-307.72,0.00041902,120]
[404225688,1769978501307,-759.4,0.00042,30]
[404225689,1769978501377,-151.0,0.00042082,120]
[404225690,1769978501445,-151.0,0.00042082,120]
[404225691,1769978501513,-151.0,0.00042082,120]
[404225692,1769978501582,-151.0,0.00042082,120]
[404225693,1769978501648,-152.0,0.000421,120]
[404225694,1769978501713,-151.0,0.000424,120]
[404225695,1769978501779,-166.84010405,0.00042411,60]
[404225696,1769978501845,-150.0,0.00042411,60]
[404225697,1769978501911,-500.0,0.00042411,60]
[404225698,1769978502328,-150.62721726,0.00042411,60]
[404225699,1769978502391,-150.0,0.00042411,60]
[404225700,1769978502457,-500.0,0.00042411,60]
[404225701,1769978502521,-152.45403668,0.00042411,60]
[404225702,1769978502585,-500.0,0.00042438,120]
[404225703,1769978502648,-500.0,0.00042466,60]